fUST/lending_fUST_20240127
["ID","MTS","AMOUNT","RATE_DAILY","PERIOD"]
[312814808,1706292648232,-500.0,0.00043835,31]
[312814809,1706292648243,-500.0,0.00043835,31]
[312814810,1706292648253,-1000.0,0.00043835,2]
[312814811,1706292648262,-584.17925574,0.00043835,31]
[312814812,1706292648271,-1957.36,0.00043835,31]
[312814813,1706292648281,-500.0,0.00043835,31]
[312814814,1706292648292,-500.0,0.00043835,31]
[312814815,1706292648303,-908.49,0.00043835,31]
[312814816,1706292648314,-1143.44,0.00043835,31]
[312814817,1706292648323,-500.0,0.00043835,7]
[312814818,1706292648332,-500.0,0.00043835,31]
[312814819,1706292648341,-500.0,0.00043835,31]
[312814820,1706292648350,-500.0,0.00043835,31]
[312814821,1706292648359,-500.0,0.00043835,31]
[312814822,1706292648369,-500.0,0.00043835,31]
[312814823,1706292648378,-3411.43,0.00043835,31]
[312814824,1706292648387,-1348.27,0.00043835,31]
[312814825,1706292648398,-1590.688829,0.00043835,7]
[312814826,1706292648408,-1590.688829,0.00043835,7]
[312814827,1706292648418,-500.0,0.00043835,31]
[312814828,1706292648427,-1590.688829,0.00043835,7]
[312814829,1706292648436,-1590.688829,0.00043835,7]
[312814830,1706292648446,-11712.77582268,0.00043835,10]
[312814895,1706293416904,-587.19733009,0.00045917,120]
[312814896,1706293416929,-500.0,0.00045917,120]
[312814897,1706293416953,-227.75,0.00045917,120]
[312814898,1706293416976,-1016.68362491,0.00045917,30]
[312814899,1706293416999,-85824.44838247,0.00045917,120]
[312814900,1706293417021,-511843.92066253,0.00045917,120]
[312814905,1706293422391,-71983.44152778,0.00045917,120]
[312814906,1706293422415,-139092.0,0.00045917,31]
[312814907,1706293422437,-159002.216241,0.00045917,120]
[312814908,1706293422460,-5555.96563777,0.00045917,120]
[312814909,1706293422482,-224366.37659345,0.00045917,30]
[312814913,1706293427904,-156.87404588,0.000295,30]
[312814914,1706293427937,-253.19198189,0.00041,120]
[312814915,1706293427959,-434.504473,0.0004119,30]
[312814916,1706293427981,-323.81979,0.0004119,30]
[312814917,1706293428003,-201.90032,0.0004119,30]
[312814918,1706293428025,-179.899883,0.0004119,30]
[312814919,1706293428049,-222.96289,0.0004119,30]
[312814920,1706293428071,-214.023405,0.0004119,30]
[312814921,1706293428093,-160.598299,0.0004119,30]
[312814922,1706293428118,-2000.0,0.000416,32]
[312814923,1706293428140,-2000.0,0.0004161,32]
[312814924,1706293428164,-3079.718063,0.0004162,32]
[312814925,1706293428186,-434.504473,0.00041705,30]
[312814926,1706293428208,-323.81979,0.00041705,30]
[312814927,1706293428232,-201.90032,0.00041705,30]
[312814928,1706293428254,-202.66698004,0.00041878,30]
[312814929,1706293428276,-202.7,0.00041979,31]
[312814930,1706293428299,-500.0,0.00041979,31]
[312814931,1706293428321,-500.0,0.00041979,31]
[312814932,1706293428344,-164.43681498,0.00041979,31]
[312814933,1706293428367,-323.81979,0.0004222,30]
[312814934,1706293428389,-434.504473,0.0004222,30]
[312814935,1706293428411,-179.899883,0.0004222,30]
[312814937,1706293428531,-201.90032,0.0004222,30]
[312814938,1706293428559,-323.81979,0.00042735,30]
[312814939,1706293428582,-434.504473,0.00042735,30]
[312814940,1706293428603,-201.90032,0.00042735,30]
[312814941,1706293428626,-576.0,0.000431,30]
[312814942,1706293428647,-152.8106738,0.00043151,30]
[312814943,1706293428671,-323.81979,0.0004325,30]
[312814944,1706293428693,-434.504473,0.0004325,30]
[312814945,1706293428715,-179.899883,0.0004325,30]
[312814946,1706293428737,-201.90032,0.0004325,30]
[312814947,1706293428760,-222.96289,0.0004325,30]
[312814948,1706293428783,-152.8106738,0.00043344,30]
[312814949,1706293428806,-152.8106738,0.00043591,30]
[312814950,1706293428829,-152.8106738,0.00043767,30]
[312814951,1706293428852,-150.80622618,0.00043788,30]
[312814952,1706293428877,-3945.26081243,0.000438,60]
[312814953,1706293428901,-152.8106738,0.000438,30]
[312814954,1706293428926,-500.0,0.00043835,31]
[312814955,1706293428951,-500.0,0.00043835,31]
[312814956,1706293428976,-500.0,0.00043835,31]
[312814957,1706293428997,-500.0,0.00043835,31]
[312814958,1706293429020,-613.22818558,0.00043835,31]
[312814959,1706293429043,-500.0,0.00043835,31]
[312814960,1706293429066,-500.0,0.00043835,31]
[312814961,1706293429088,-708.74,0.00043835,31]
[312814962,1706293429110,-500.0,0.00043835,31]
[312814963,1706293429132,-500.0,0.00043835,31]
[312814964,1706293429155,-500.0,0.00043835,31]
[312814965,1706293429180,-500.0,0.00043835,31]
[312814966,1706293429202,-500.0,0.00043835,31]
[312814967,1706293429224,-500.0,0.00043835,31]
[312814968,1706293429247,-500.0,0.00043835,31]
[312814969,1706293429269,-500.0,0.00043835,31]
[312814970,1706293429290,-452.72913598,0.00043835,31]
[312814971,1706293429312,-500.0,0.00043835,31]
[312814972,1706293429335,-500.0,0.00043835,31]
[312814973,1706293429356,-500.0,0.00043835,31]
[312814974,1706293429379,-500.0,0.00043835,31]
[312814975,1706293429401,-500.0,0.00043835,31]
[312814976,1706293429425,-1311.9,0.00043835,31]
[312814977,1706293429449,-500.0,0.00043835,31]
[312814978,1706293429475,-500.0,0.00043835,31]
[312814979,1706293429497,-500.0,0.00043835,31]
[312814980,1706293429519,-500.0,0.00043835,31]
[312814981,1706293429543,-500.0,0.00043835,31]
[312814982,1706293429565,-500.0,0.00043835,31]
[312814983,1706293429588,-500.0,0.00043835,31]
[312814984,1706293429611,-500.0,0.00043835,31]
[312814985,1706293429637,-500.0,0.00043835,31]
[312814986,1706293429661,-500.0,0.00043835,31]
[312814987,1706293429685,-500.0,0.00043835,31]
[312814988,1706293429707,-500.0,0.00043835,31]
[312814989,1706293429731,-500.0,0.00043835,31]
[312814990,1706293429757,-500.0,0.00043835,31]
[312814991,1706293429780,-500.0,0.00043835,31]
[312814992,1706293429804,-500.0,0.00043835,31]
[312814993,1706293429826,-500.0,0.00043835,31]
[312814994,1706293429850,-500.0,0.00043835,31]
[312814995,1706293429872,-500.0,0.00043835,31]
[312814996,1706293429899,-500.0,0.00043835,31]
[312814997,1706293429922,-185.32692543,0.00043835,31]
[312814998,1706293429947,-500.0,0.00043835,31]
[312814999,1706293429970,-500.0,0.00043835,31]
[312815000,1706293429993,-500.0,0.00043835,31]
[312815001,1706293430015,-500.0,0.00043835,31]
[312815002,1706293430040,-500.0,0.00043835,31]
[312815003,1706293430063,-500.0,0.00043835,31]
[312815004,1706293430086,-500.0,0.00043835,31]
[312815005,1706293430110,-500.0,0.00043835,31]
[312815006,1706293430133,-500.0,0.00043835,31]
[312815007,1706293430158,-500.0,0.00043835,31]
[312815008,1706293430266,-500.0,0.00043835,31]
[312815009,1706293430292,-500.0,0.00043835,31]
[312815010,1706293430315,-500.0,0.00043835,31]
[312815011,1706293430338,-500.0,0.00043835,31]
[312815012,1706293430361,-480.72305585,0.00043835,31]
[312815013,1706293430384,-351.42706359,0.00043835,31]
[312815014,1706293430406,-508.20197906,0.00043835,31]
[312815015,1706293430429,-500.0,0.00043835,31]
[312815016,1706293430453,-1430.27,0.00043835,31]
[312815017,1706293430475,-500.0,0.00043835,31]
[312815018,1706293430502,-500.0,0.00043835,31]
[312815019,1706293430524,-500.0,0.00043835,31]
[312815020,1706293430551,-500.0,0.00043835,31]
[312815021,1706293430574,-1154.93,0.00043835,31]
[312815022,1706293430597,-611.61,0.00043835,31]
[312815023,1706293430620,-500.0,0.00043835,31]
[312815024,1706293430643,-2364.75,0.00043835,31]
[312815025,1706293430666,-500.0,0.00043835,31]
[312815026,1706293430691,-4136.53,0.00043835,31]
[312815027,1706293430716,-500.0,0.00043835,31]
[312815028,1706293430739,-500.0,0.00043835,31]
[312815029,1706293430762,-1509.19,0.00043835,31]
[312815030,1706293430784,-500.0,0.00043835,31]
[312815031,1706293430809,-658.24,0.00043835,31]
[312815032,1706293430833,-500.0,0.00043835,31]
[312815033,1706293430856,-956.29,0.00043835,31]
[312815034,1706293430880,-500.0,0.00043835,31]
[312815035,1706293430904,-500.0,0.00043835,31]
[312815036,1706293430928,-500.0,0.00043835,31]
[312815037,1706293430951,-500.0,0.00043835,31]
[312815038,1706293430973,-500.0,0.00043835,31]
[312815039,1706293430997,-649.03,0.00043835,31]
[312815040,1706293431019,-4897.2200031,0.00043835,30]
[312815041,1706293431042,-500.0,0.00043835,31]
[312815042,1706293431064,-318.77201476,0.00043835,31]
[312815043,1706293431088,-500.0,0.00043835,31]
[312815044,1706293431111,-549.63,0.00043835,31]
[312815045,1706293431134,-500.0,0.00043835,31]
[312815046,1706293431162,-500.0,0.00043835,31]
[312815047,1706293431184,-500.0,0.00043835,31]
[312815048,1706293431208,-1502.81,0.00043835,31]
[312815049,1706293431237,-2200.41,0.00043835,31]
[312815050,1706293431274,-6821.44,0.00043835,31]
[312815051,1706293431306,-3334.12,0.00043835,31]
[312815052,1706293431335,-500.0,0.00043835,31]
[312815053,1706293431365,-500.0,0.00043835,31]
[312815054,1706293431396,-500.0,0.00043835,31]
[312815055,1706293431423,-571.82,0.00043835,31]
[312815056,1706293431450,-500.0,0.00043835,31]
[312815057,1706293431479,-500.0,0.00043835,31]
[312815058,1706293431507,-500.0,0.00043835,31]
[312815059,1706293431536,-500.0,0.00043835,31]
[312815060,1706293431565,-2314.96,0.00043835,31]
[312815061,1706293431594,-500.0,0.00043835,31]
[312815062,1706293431623,-577.69,0.00043835,31]
[312815063,1706293431652,-1103.11,0.00043835,31]
[312815064,1706293431682,-1152.12,0.00043835,31]
[312815065,1706293431710,-500.0,0.00043835,31]
[312815066,1706293431741,-500.0,0.00043835,31]
[312815067,1706293431770,-2186.0,0.00043835,31]
[312815068,1706293431797,-628.86,0.00043835,31]
[312815069,1706293431821,-1292.09,0.00043835,31]
[312815070,1706293431850,-507.57738355,0.00043835,31]
[312815071,1706293431876,-500.0,0.00043835,31]
[312815072,1706293431906,-500.0,0.00043835,31]
[312815073,1706293431931,-500.0,0.00043835,31]
[312815074,1706293431959,-500.0,0.00043835,31]
[312815075,1706293431988,-1091.23,0.00043835,31]
[312815076,1706293432015,-2765.96,0.00043835,31]
[312815077,1706293432043,-468.26900757,0.00043835,31]
[312815078,1706293432069,-500.0,0.00043835,31]
[312815079,1706293432095,-500.0,0.00043835,31]
[312815080,1706293432120,-500.0,0.00043835,31]
[312815081,1706293432146,-500.0,0.00043835,31]
[312815082,1706293432171,-500.0,0.00043835,31]
[312815083,1706293432198,-500.0,0.00043835,31]
[312815084,1706293432223,-500.0,0.00043835,31]
[312815085,1706293432249,-650.72,0.00043835,31]
[312815086,1706293432275,-1075.54,0.00043835,31]
[312815087,1706293432302,-500.0,0.00043835,31]
[312815088,1706293432326,-400.0,0.00043836,30]
[312815089,1706293432352,-151.78992728,0.00043935,30]
[312815090,1706293432495,-152.8106738,0.0004404,30]
[312815091,1706293432517,-152.8106738,0.00044041,30]
[312815092,1706293432540,-152.8106738,0.0004406,30]
[312815093,1706293432563,-152.8106738,0.00044111,30]
[312815094,1706293432585,-155.54233736,0.00044239,30]
[312815095,1706293432607,-273.4587,0.00044277,30]
[312815096,1706293432629,-155.54233736,0.00044296,30]
[312815097,1706293432651,-500.0,0.00044382,60]
[312815098,1706293432673,-500.0,0.00044382,60]
[312815099,1706293432695,-500.0,0.00044382,60]
[312815100,1706293432717,-360.92623343,0.00044382,60]
[312815101,1706293432739,-500.0,0.00044382,60]
[312815102,1706293432762,-500.0,0.00044382,60]
[312815103,1706293432784,-500.0,0.00044382,60]
[312815104,1706293432807,-373.77722515,0.00044382,60]
[312815105,1706293432846,-500.0,0.00044382,60]
[312815106,1706293432883,-500.0,0.00044382,60]
[312815107,1706293432908,-500.0,0.00044382,60]
[312815108,1706293432931,-500.0,0.00044382,60]
[312815109,1706293432953,-500.0,0.00044382,60]
[312815110,1706293432975,-500.0,0.00044382,60]
[312815111,1706293432997,-500.0,0.00044382,60]
[312815112,1706293433020,-500.0,0.00044382,60]
[312815113,1706293433042,-500.0,0.00044382,60]
[312815114,1706293433065,-500.0,0.00044382,60]
[312815115,1706293433087,-500.0,0.00044382,60]
[312815116,1706293433109,-500.0,0.00044382,60]
[312815117,1706293433131,-500.0,0.00044382,60]
[312815118,1706293433153,-258.85800975,0.00044382,60]
[312815119,1706293433175,-500.0,0.00044382,60]
[312815120,1706293433198,-500.0,0.00044382,60]
[312815121,1706293433221,-500.0,0.00044382,60]
[312815122,1706293433244,-500.0,0.00044382,60]
[312815123,1706293433266,-500.0,0.00044382,60]
[312815124,1706293433289,-500.0,0.00044382,60]
[312815125,1706293433312,-500.0,0.00044382,60]
[312815126,1706293433335,-591.80423155,0.00044382,60]
[312815127,1706293433357,-500.0,0.00044382,60]
[312815128,1706293433379,-500.0,0.00044382,60]
[312815129,1706293433400,-500.0,0.00044382,60]
[312815130,1706293433423,-608.46562599,0.00044382,60]
[312815131,1706293433450,-500.0,0.00044382,60]
[312815132,1706293433472,-500.0,0.00044382,60]
[312815133,1706293433494,-500.0,0.00044382,60]
[312815134,1706293433517,-500.0,0.00044382,60]
[312815135,1706293433539,-500.0,0.00044382,60]
[312815136,1706293433563,-500.0,0.00044382,60]
[312815137,1706293433585,-500.0,0.00044382,60]
[312815138,1706293433607,-500.0,0.00044382,60]
[312815139,1706293433630,-500.0,0.00044382,60]
[312815140,1706293433653,-500.0,0.00044382,60]
[312815141,1706293433675,-500.0,0.00044382,60]
[312815142,1706293433697,-500.0,0.00044382,60]
[312815143,1706293433721,-500.0,0.00044382,60]
[312815144,1706293433744,-432.38813227,0.00044382,60]
[312815145,1706293433766,-500.0,0.00044382,60]
[312815146,1706293433787,-500.0,0.00044382,60]
[312815147,1706293433811,-500.0,0.00044382,60]
[312815148,1706293433833,-500.0,0.00044382,60]
[312815149,1706293433855,-500.0,0.00044382,60]
[312815150,1706293433892,-500.0,0.00044382,60]
[312815151,1706293433917,-500.0,0.00044382,60]
[312815152,1706293433941,-500.0,0.00044382,60]
[312815153,1706293433965,-500.0,0.00044382,60]
[312815154,1706293433990,-500.0,0.00044382,60]
[312815155,1706293434013,-500.0,0.00044382,60]
[312815156,1706293434037,-500.0,0.00044382,60]
[312815157,1706293434065,-500.0,0.00044382,60]
[312815158,1706293434088,-500.0,0.00044382,60]
[312815159,1706293434112,-400.0,0.00044382,60]
[312815160,1706293434135,-161.82180295,0.00044382,30]
[312815161,1706293434159,-500.0,0.00044383,31]
[312815162,1706293434182,-500.0,0.00044383,31]
[312815163,1706293434205,-500.0,0.00044383,31]
[312815164,1706293434228,-500.0,0.00044383,31]
[312815165,1706293434251,-500.0,0.00044383,31]
[312815166,1706293434274,-500.0,0.00044383,31]
[312815167,1706293434299,-708.74,0.00044383,31]
[312815168,1706293434322,-500.0,0.00044383,31]
[312815169,1706293434344,-500.0,0.00044383,31]
[312815170,1706293434367,-500.0,0.00044383,31]
[312815171,1706293434389,-500.0,0.00044383,31]
[312815172,1706293434411,-500.0,0.00044383,31]
[312815173,1706293434434,-500.0,0.00044383,31]
[312815174,1706293434456,-500.0,0.00044383,31]
[312815175,1706293434479,-500.0,0.00044383,31]
[312815176,1706293434501,-500.0,0.00044383,31]
[312815177,1706293434524,-500.0,0.00044383,31]
[312815178,1706293434548,-500.0,0.00044383,31]
[312815179,1706293434571,-500.0,0.00044383,31]
[312815180,1706293434595,-1311.9,0.00044383,31]
[312815181,1706293434618,-500.0,0.00044383,31]
[312815182,1706293434641,-500.0,0.00044383,31]
[312815183,1706293434780,-500.0,0.00044383,31]
[312815184,1706293434809,-500.0,0.00044383,31]
[312815185,1706293434832,-500.0,0.00044383,31]
[312815186,1706293434855,-500.0,0.00044383,31]
[312815187,1706293434879,-500.0,0.00044383,31]
[312815188,1706293434903,-500.0,0.00044383,31]
[312815189,1706293434926,-500.0,0.00044383,31]
[312815190,1706293434949,-500.0,0.00044383,31]
[312815191,1706293434973,-543.3534357,0.00044383,31]
[312815192,1706293434996,-500.0,0.00044383,31]
[312815193,1706293435019,-514.34619503,0.00044383,31]
[312815194,1706293435042,-500.0,0.00044383,31]
[312815195,1706293435069,-500.0,0.00044383,31]
[312815196,1706293435091,-500.0,0.00044383,31]
[312815197,1706293435114,-500.0,0.00044383,31]
[312815198,1706293435137,-500.0,0.00044383,31]
[312815199,1706293435159,-500.0,0.00044383,31]
[312815201,1706293435182,-500.0,0.00044383,31]
[312815202,1706293435204,-500.0,0.00044383,31]
[312815203,1706293435227,-500.0,0.00044383,31]
[312815204,1706293435250,-500.0,0.00044383,31]
[312815205,1706293435273,-500.0,0.00044383,31]
[312815206,1706293435296,-500.0,0.00044383,31]
[312815207,1706293435318,-500.0,0.00044383,31]
[312815208,1706293435341,-500.0,0.00044383,31]
[312815209,1706293435364,-500.0,0.00044383,31]
[312815210,1706293435386,-500.0,0.00044383,31]
[312815211,1706293435408,-500.0,0.00044383,31]
[312815212,1706293435430,-500.0,0.00044383,31]
[312815213,1706293435452,-500.0,0.00044383,31]
[312815214,1706293435474,-500.0,0.00044383,31]
[312815215,1706293435496,-500.0,0.00044383,31]
[312815216,1706293435518,-1430.27,0.00044383,31]
[312815217,1706293435541,-500.0,0.00044383,31]
[312815218,1706293435564,-500.0,0.00044383,31]
[312815219,1706293435586,-500.0,0.00044383,31]
[312815220,1706293435609,-500.0,0.00044383,31]
[312815221,1706293435632,-1154.93,0.00044383,31]
[312815222,1706293435655,-611.61,0.00044383,31]
[312815223,1706293435679,-500.0,0.00044383,31]
[312815224,1706293435706,-2364.75,0.00044383,31]
[312815225,1706293435728,-500.0,0.00044383,31]
[312815226,1706293435751,-4136.53,0.00044383,31]
[312815227,1706293435773,-500.0,0.00044383,31]
[312815228,1706293435795,-500.0,0.00044383,31]
[312815229,1706293435817,-1509.19,0.00044383,31]
[312815230,1706293435840,-500.0,0.00044383,31]
[312815231,1706293435863,-658.24,0.00044383,31]
[312815232,1706293435886,-500.0,0.00044383,31]
[312815233,1706293435915,-956.29,0.00044383,31]
[312815234,1706293435938,-608.26263912,0.00044383,31]
[312815235,1706293435961,-500.0,0.00044383,31]
[312815236,1706293435985,-500.0,0.00044383,31]
[312815237,1706293436008,-500.0,0.00044383,31]
[312815238,1706293436030,-500.0,0.00044383,31]
[312815239,1706293436060,-649.03,0.00044383,31]
[312815240,1706293436083,-500.0,0.00044383,31]
[312815241,1706293436105,-500.0,0.00044383,31]
[312815242,1706293436128,-549.63,0.00044383,31]
[312815243,1706293436150,-500.0,0.00044383,31]
[312815244,1706293436172,-508.95774787,0.00044383,31]
[312815245,1706293436195,-500.0,0.00044383,31]
[312815246,1706293436217,-1502.81,0.00044383,31]
[312815247,1706293436240,-2200.41,0.00044383,31]
[312815248,1706293436263,-6821.44,0.00044383,31]
[312815249,1706293436285,-3334.12,0.00044383,31]
[312815250,1706293436309,-500.0,0.00044383,31]
[312815251,1706293436331,-500.0,0.00044383,31]
[312815252,1706293436354,-500.0,0.00044383,31]
[312815253,1706293436376,-571.82,0.00044383,31]
[312815254,1706293436398,-500.0,0.00044383,31]
[312815255,1706293436421,-500.0,0.00044383,31]
[312815256,1706293436443,-500.0,0.00044383,31]
[312815257,1706293436465,-500.0,0.00044383,31]
[312815258,1706293436489,-2314.96,0.00044383,31]
[312815259,1706293436513,-577.69,0.00044383,31]
[312815260,1706293436535,-1103.11,0.00044383,31]
[312815261,1706293436561,-1152.12,0.00044383,31]
[312815262,1706293436585,-500.0,0.00044383,31]
[312815263,1706293436608,-500.0,0.00044383,31]
[312815264,1706293436634,-2186.0,0.00044383,31]
[312815265,1706293436656,-628.86,0.00044383,31]
[312815266,1706293436681,-1292.09,0.00044383,31]
[312815267,1706293436705,-500.0,0.00044383,31]
[312815268,1706293436728,-500.0,0.00044383,31]
[312815269,1706293436753,-500.0,0.00044383,31]
[312815270,1706293436775,-500.0,0.00044383,31]
[312815271,1706293436798,-1091.23,0.00044383,31]
[312815272,1706293436820,-2765.96,0.00044383,31]
[312815273,1706293436845,-500.0,0.00044383,31]
[312815274,1706293436867,-500.0,0.00044383,31]
[312815275,1706293436985,-500.0,0.00044383,31]
[312815276,1706293437008,-500.0,0.00044383,31]
[312815277,1706293437030,-500.0,0.00044383,31]
[312815278,1706293437054,-500.0,0.00044383,31]
[312815279,1706293437077,-500.0,0.00044383,31]
[312815280,1706293437100,-650.72,0.00044383,31]
[312815281,1706293437124,-1075.54,0.00044383,31]
[312815282,1706293437148,-500.0,0.00044383,31]
[312815283,1706293437170,-152.8106738,0.00044593,30]
[312815284,1706293437193,-27000.23186899,0.000449,120]
[312815285,1706293437216,-500.0,0.0004491,120]
[312815286,1706293437238,-295.82,0.0004491,120]
[312815287,1706293437261,-174.6360479,0.00044919,30]
[312815288,1706293437284,-500.0,0.00044931,31]
[312815289,1706293437306,-500.0,0.00044931,31]
[312815290,1706293437329,-500.0,0.00044931,31]
[312815291,1706293437351,-500.0,0.00044931,31]
[312815292,1706293437373,-500.0,0.00044931,31]
[312815293,1706293437395,-500.0,0.00044931,31]
[312815294,1706293437418,-708.74,0.00044931,31]
[312815295,1706293437440,-500.0,0.00044931,31]
[312815296,1706293437462,-500.0,0.00044931,31]
[312815297,1706293437484,-500.0,0.00044931,31]
[312815298,1706293437506,-500.0,0.00044931,31]
[312815299,1706293437529,-500.0,0.00044931,31]
[312815300,1706293437552,-500.0,0.00044931,31]
[312815301,1706293437573,-500.0,0.00044931,31]
[312815302,1706293437596,-500.0,0.00044931,31]
[312815303,1706293437619,-500.0,0.00044931,31]
[312815304,1706293437641,-500.0,0.00044931,31]
[312815305,1706293437663,-500.0,0.00044931,31]
[312815306,1706293437685,-500.0,0.00044931,31]
[312815307,1706293437707,-1311.9,0.00044931,31]
[312815308,1706293437730,-500.0,0.00044931,31]
[312815309,1706293437752,-500.0,0.00044931,31]
[312815310,1706293437775,-500.0,0.00044931,31]
[312815311,1706293437798,-500.0,0.00044931,31]
[312815312,1706293437829,-500.0,0.00044931,31]
[312815313,1706293437851,-500.0,0.00044931,31]
[312815314,1706293437874,-609.20464547,0.00044931,31]
[312815315,1706293437898,-500.0,0.00044931,31]
[312815316,1706293437921,-380.38467469,0.00044931,31]
[312815317,1706293437943,-500.0,0.00044931,31]
[312815318,1706293437965,-500.0,0.00044931,31]
[312815319,1706293437988,-500.0,0.00044931,31]
[312815320,1706293438010,-500.0,0.00044931,31]
[312815321,1706293438032,-500.0,0.00044931,31]
[312815322,1706293438055,-500.0,0.00044931,31]
[312815323,1706293438078,-500.0,0.00044931,31]
[312815324,1706293438102,-500.0,0.00044931,31]
[312815325,1706293438125,-500.0,0.00044931,31]
[312815326,1706293438149,-500.0,0.00044931,31]
[312815327,1706293438172,-500.0,0.00044931,31]
[312815328,1706293438194,-500.0,0.00044931,31]
[312815329,1706293438218,-500.0,0.00044931,31]
[312815330,1706293438240,-500.0,0.00044931,31]
[312815331,1706293438263,-500.0,0.00044931,31]
[312815332,1706293438286,-392.16255178,0.00044931,31]
[312815333,1706293438309,-500.0,0.00044931,31]
[312815334,1706293438332,-500.0,0.00044931,31]
[312815335,1706293438354,-500.0,0.00044931,31]
[312815336,1706293438377,-500.0,0.00044931,31]
[312815337,1706293438400,-500.0,0.00044931,31]
[312815338,1706293438423,-500.0,0.00044931,31]
[312815339,1706293438445,-500.0,0.00044931,31]
[312815340,1706293438467,-1430.27,0.00044931,31]
[312815341,1706293438489,-500.0,0.00044931,31]
[312815342,1706293438515,-500.0,0.00044931,31]
[312815343,1706293438537,-500.0,0.00044931,31]
[312815344,1706293438560,-500.0,0.00044931,31]
[312815345,1706293438583,-1154.93,0.00044931,31]
[312815346,1706293438607,-611.61,0.00044931,31]
[312815347,1706293438630,-500.0,0.00044931,31]
[312815349,1706293438653,-2364.75,0.00044931,31]
[312815350,1706293438675,-500.0,0.00044931,31]
[312815351,1706293438698,-4136.53,0.00044931,31]
[312815352,1706293438721,-500.0,0.00044931,31]
[312815353,1706293438743,-500.0,0.00044931,31]
[312815354,1706293438766,-1509.19,0.00044931,31]
[312815355,1706293438790,-500.0,0.00044931,31]
[312815356,1706293438813,-658.24,0.00044931,31]
[312815357,1706293438836,-500.0,0.00044931,31]
[312815358,1706293438859,-956.29,0.00044931,31]
[312815359,1706293438882,-500.0,0.00044931,31]
[312815360,1706293438907,-500.0,0.00044931,31]
[312815361,1706293438930,-500.0,0.00044931,31]
[312815362,1706293438957,-241.69406,0.00044931,31]
[312815363,1706293439051,-649.03,0.00044931,31]
[312815364,1706293439092,-500.0,0.00044931,31]
[312815365,1706293439116,-500.0,0.00044931,31]
[312815366,1706293439139,-549.63,0.00044931,31]
[312815368,1706293439163,-500.0,0.00044931,31]
[312815369,1706293439185,-500.0,0.00044931,31]
[312815370,1706293439211,-1502.81,0.00044931,31]
[312815371,1706293439234,-2200.41,0.00044931,31]
[312815372,1706293439258,-6821.44,0.00044931,31]
[312815373,1706293439280,-3334.12,0.00044931,31]
[312815374,1706293439303,-500.0,0.00044931,31]
[312815375,1706293439325,-500.0,0.00044931,31]
[312815376,1706293439348,-500.0,0.00044931,31]
[312815377,1706293439371,-571.82,0.00044931,31]
[312815378,1706293439394,-500.0,0.00044931,31]
[312815379,1706293439416,-500.0,0.00044931,31]
[312815380,1706293439439,-500.0,0.00044931,31]
[312815381,1706293439462,-500.0,0.00044931,31]
[312815382,1706293439485,-2314.96,0.00044931,31]